Cogmind - Beta 11.1 @@@ ROGUE MODE // 2022.06.06 @ 15:26:30 Player: SC1ENCE Result: Destroyed by P-70 Sage with Tesla Rifle Performance ------------- Evolutions (5) 2500 Regions Visited (7) 1400 Robots Destroyed (121) 605 Value Destroyed (3207) 3207 Prototype IDs (16) 320 Alien Tech Used (0) 0 Bonus (661) 661 TOTAL SCORE: 8693 Bonus ------- High Alert Combat Kills 304 Follower Combat Kills 372 Friendly Fire -15 Cogmind --------- Core Integrity 0/1000 Matter 419/500 Energy 23/100 System Corruption 17% Temperature Cool (0) Movement Core (1550) Ox30 Location -5/Factory Parts ------- > --- POWER (2) -------- (None) > --- PROPULSION (5) --- (None) > --- UTILITY (7) ------ Huge Storage Unit High-capacity Matter Pod > --- WEAPON (3) ------- Shock Maul Scythe Axe > --- INVENTORY (25) --- Gatling Laser Heavy Plasma Cannon Heavy Machine Gun Hypervelocity Coil Gun Enhanced Gauss Cannon Katana Scythe Peak State ------------ > --- POWER ------------ Nuclear Core Improved Deuterium Engine > --- PROPULSION ------- Medium Treads Medium Treads Medium Treads Wheel Wheel > --- UTILITY ---------- Improved Cooling System Huge Storage Unit Improved Sensor Array Improved Weapon Shielding Layered Light Armor Plating Improved Shock Absorption System Improved Shield Generator > --- WEAPON ----------- Heavy Plasma Cannon Flak Gun Katana > --- INVENTORY -------- Light Nuclear Core Advanced Treads Carbon-fiber Leg Carbon-fiber Leg Titanium Leg Wheel Wheel Wheel Wheel Wheel Wheel High-capacity Matter Pod Improved Light Armor Plating Improved Shield Generator Improved Shield Generator Gatling Laser Enhanced Gauss Cannon Power Maul Katana Katana Scythe Scythe Scythe Axe [Rating: 64] Favorites ----------- Power Improved Deuterium Engine Engine Improved Deuterium Engine Power Core Nuclear Core Propulsion Wheel Treads Medium Treads Leg Aluminum Leg Wheel Wheel Utility Huge Storage Unit Device Improved Shield Generator Storage Huge Storage Unit Processor Improved Targeting Computer Protection Layered Light Armor Plating Weapon Katana Energy Gun EM Pulse Gun Energy Cannon EM Pulse Cannon Ballistic Gun Heavy Assault Rifle Ballistic Cannon Assault Cannon Launcher Mini Grenade Launcher Impact Weapon Mace Slashing Weapon Katana Build | -11 -10 -9 -8 -7 -7 -7 -5 ------- Run | Scr Mat Mat Mat Fac Sto Rec Fac Slots Evolved 10 | . . 2 2 2 . . 4 Power 1 | . . . . . . . 1 Propulsion 3 | . . 2 . 1 . . . Utility 5 | . . . 2 . . . 3 Weapon 1 | . . . . 1 . . . Parts Attached 180 | 7 7 25 49 29 26 1 36 Power 14 | 1 1 3 3 1 2 . 3 Engine 10 | 1 . 3 2 1 2 . 1 Core 4 | . 1 . 1 . . . 2 Reactor . | . . . . . . . . Propulsion 78 | 2 . 12 23 14 16 . 11 Treads 5 | . . . . . 3 . 2 Leg 41 | . . 7 15 5 11 . 3 Wheel 32 | 2 . 5 8 9 2 . 6 Hover . | . . . . . . . . Flight . | . . . . . . . . Utility 45 | 2 4 2 10 6 7 1 13 Device 21 | 1 1 1 4 1 5 1 7 Storage 6 | 1 2 . 2 . . . 1 Processor 5 | . 1 . 2 2 . . . Hackware . | . . . . . . . . Protection 13 | . . 1 2 3 2 . 5 Artifact . | . . . . . . . . Weapon 43 | 2 2 8 13 8 1 . 9 Energy Gun 6 | 2 . 2 1 1 . . . Energy Cannon 5 | . . . 2 2 . . 1 Ballistic Gun 10 | . 1 3 3 . 1 . 2 Ballistic Cannon 8 | . 1 . 5 2 . . . Launcher 3 | . . 1 2 . . . . Special Weapon . | . . . . . . . . Impact Weapon 4 | . . 2 . . . . 2 Slashing Weapon 7 | . . . . 3 . . 4 Piercing Weapon . | . . . . . . . . Special Melee Weapon . | . . . . . . . . Unidentified Prototypes 3 | . . 1 . 1 . . 1 Parts Lost 66 | . 1 10 16 . 9 . 30 Power 7 | . . 2 1 . 1 . 3 Propulsion 32 | . . 4 7 . 6 . 15 Utility 14 | . 1 1 3 . 2 . 7 Weapon 13 | . . 3 5 . . . 5 Highest Loss Streak 26 | . 1 6 9 . 8 . 26 To Critical Strikes . | . . . . . . . . Average Slot Usage (%) 96 | . 99 92 98 98 98 99 91 Engine 6 | . 8 8 7 7 6 7 4 Core 1 | . 5 2 2 . . . 4 Treads 7 | . . . . . 12 23 15 Leg 11 | . . 29 17 14 9 . . Wheel 16 | . 28 9 18 23 15 15 9 Device 10 | . 10 2 9 2 14 14 19 Storage 9 | . 14 11 12 7 7 7 5 Processor 3 | . 2 2 7 12 . . . Protection 6 | . . 5 7 5 7 7 10 Energy Gun 1 | . 6 2 . 2 . . . Ballistic Gun 7 | . 13 11 8 4 4 7 2 Ballistic Cannon 3 | . 8 2 8 4 . . . Slashing Weapon 7 | . . . . 8 17 15 11 Naked Turns . | . . . . . . . . Heaviest Build 134 | 15 91 60 103 113 112 108 134 Greatest Support 84 | 26 26 40 36 62 84 20 28 Greatest Overweight (x) 30 | 3 3 2 6 3 10 5 30 Average Overweight (x) 3 | . . 1 2 2 4 5 6 Largest Inventory Capacity 25 | 8 25 20 25 25 25 25 25 Average Capacity 23 | 7 19 20 22 25 25 25 25 Most Carried 25 | 5 20 20 25 25 25 25 25 Average Carried 21 | 2 13 18 21 24 24 25 22 Final Capacity 25 | 8 20 20 25 25 25 25 25 Final Carried 25 | 5 20 20 25 25 25 25 7 Class Distribution -------------------- 55% | Mutant 38% | Scavenger-Mutant 5% | Scavenger-Gunner Dominant Class ---------------- Mutant | -10/Materials Mutant | -9/Materials Scavenger-Mutant | -8/Materials Scavenger-Gunner | -7/Factory Mutant | -7/Storage Mutant | -7/Recycling Scavenger-Mutant | -5/Factory Resources | -11 -10 -9 -8 -7 -7 -7 -5 ----------- Run | Scr Mat Mat Mat Fac Sto Rec Fac Matter Collected 3614 | 270 297 546 1268 385 575 20 253 Remotely . | . . . . . . . . Salvage Created 4117 | 18 570 620 1159 225 985 73 467 Parts 252 | 3 29 39 77 19 64 3 18 Haulers Intercepted 3 | . . . 1 . 2 . . Recyclers Shooed 7 | . 2 2 2 . 1 . . Parts Field Recycled . | . . . . . . . . Retrieved Matter . | . . . . . . . . Parts Self-Destructed . | . . . . . . . . Prevented . | . . . . . . . . Kills | -11 -10 -9 -8 -7 -7 -7 -5 ------- Run | Scr Mat Mat Mat Fac Sto Rec Fac Combat Hostiles Destroyed 69 | . 11 14 22 . 11 . 11 Melee 15 | . . . . . 8 . 7 Guns 31 | . 8 13 5 . 3 . 2 Cannons 19 | . 3 1 14 . . . 1 AOE 3 | . . . 3 . . . . Classes Destroyed 17 | 1 6 3 4 1 2 . . Worker 19 | . 1 2 6 3 7 . . Builder 9 | . . . 5 1 3 . . Tunneler 2 | 1 . . 1 . . . . Hauler 3 | . . . 1 . 2 . . Recycler 9 | . 2 1 2 1 2 1 . Mechanic 1 | . . . . 1 . . . Operator 2 | . 1 . . . 1 . . Watcher 7 | . 1 2 1 1 2 . . Swarmer 19 | . 3 5 3 . 4 . 4 Grunt 29 | . 8 5 12 . 1 . 3 Brawler 1 | . . 1 . . . . . Duelist 1 | . . 1 . . . . . Sentry 9 | . . 2 4 . 2 . 1 Specialist 2 | . . . 2 . . . . Hunter 4 | . . . . . 3 . 1 Programmer 3 | . . . . . 1 . 2 Heavy 1 | . . . 1 . . . . Best Kill Streak 8 | 1 8 4 5 2 6 1 3 Combat Bots Only 4 | . 4 3 4 . 3 . 3 Max Kills in Single Turn 3 | 1 1 1 3 1 1 1 1 Gunslinging . | . . . . . . . . Exploded 2 | . . . 2 . . . . Melee 1 | . . . . . 1 . 1 Uniques/NPCs Destroyed . | . . . . . . . . Combat | -11 -10 -9 -8 -7 -7 -7 -5 -------- Run | Scr Mat Mat Mat Fac Sto Rec Fac Damage Taken 11325 | . 408 1447 1926 . 1868 . 5676 Core 1833 | . 56 341 275 . 159 . 1002 Absorbed by Shields 647 | . . . . . 153 . 494 Redirected to Shielding 104 | . . . . . . . 104 Core Remaining (%) 63 | 100 77 14 50 . . 77 . Volleys Fired 277 | 1 35 77 121 5 21 . 17 Largest 3 | 2 2 2 2 3 1 . 2 Hottest 133 | 90 63 63 107 133 28 . 118 Shots Fired 467 | 2 69 118 215 15 21 1 26 Gun 290 | 2 37 104 98 10 21 1 17 Cannon 163 | . 32 14 103 5 . . 9 Launcher 14 | . . . 14 . . . . Special . | . . . . . . . . Kinetic 396 | . 66 95 186 10 21 1 17 Thermal 18 | 1 . . 3 5 . . 9 Explosive 14 | . . . 14 . . . . Electromagnetic 39 | 1 3 23 12 . . . . Robot Hit Streak 19 | 2 10 7 19 6 8 1 8 Robot Miss Streak 9 | . 5 3 9 2 6 8 6 Penetration Max . | . . . . . . . . Secondary Targets 1 | . . 1 . . . . . Max Gunslinging Chain 1 | . . 1 . . . . . Shots Hit Robots 405 | 2 42 74 136 15 83 2 51 Core Hits 194 | 1 20 27 65 6 42 1 32 Critical Kills . | . . . . . . . . Critical Parts Destroyed 4 | . . 1 1 . . . 2 Critical Strikes 16 | . . 1 4 . 6 . 5 Destroy 1 | . . . 1 . . . . Blast 3 | . . . 3 . . . . Smash 3 | . . 1 . . . . 2 Sever 9 | . . . . . 6 . 3 Melee Attacks 152 | . . 2 . 7 85 3 55 Impact 12 | . . 2 . . . . 10 Slashing 140 | . . . . 7 85 3 45 Piercing . | . . . . . . . . Sneak Attacks 29 | . . 2 . 5 21 1 . Combat Hostiles . | . . . . . . . . Follow-up Attacks 25 | . . . . . 15 . 10 Damage Inflicted 10330 | 24 824 1397 3037 518 2970 75 1485 Guns 3067 | 24 400 1042 838 157 326 5 275 Cannons 2267 | . 319 153 1601 43 . . 151 Explosions 632 | . 34 . 598 . . . . Melee 4234 | . . 170 . 318 2617 70 1059 Ramming 130 | . 71 32 . . 27 . . Kinetic 4556 | . 681 1017 2152 100 326 5 275 Thermal 367 | 12 34 . 70 100 . . 151 Explosive 598 | . . . 598 . . . . Electromagnetic 445 | 12 38 178 217 . . . . Impact 332 | . . 170 . . . . 162 Slashing 3902 | . . . . 318 2617 70 897 Piercing . | . . . . . . . . Highest Corruption 17 | . 4 10 . . 9 9 17 Average Corruption 6 | . 3 9 . . 5 9 2 Corruption Purged . | . . . . . . . . Corruption Blocked . | . . . . . . . . Effects 98 | . 6 31 . . 39 16 6 Message Errors 26 | . 1 8 . . 10 6 1 Matter Fused 20 | . 1 2 . . 14 2 1 Heat Flow Errors 14 | . 2 6 . . 4 2 . Energy Discharges 9 | . . 3 . . 4 1 1 Parts Rejected 5 | . . 2 . . 1 1 1 Data Loss (minor) 12 | . 1 5 . . 3 1 2 Data Loss (major) 5 | . . 2 . . 2 1 . Misfires 2 | . . 1 . . . 1 . Alerts 2 | . . . . . 1 1 . Misdirections 1 | . . 1 . . . . . Weapon Failures 2 | . 1 1 . . . . . Overload Shots . | . . . . . . . . Overflow Damage 755 | . . 130 4 45 484 . 92 Projectiles 6 | . . . 3 3 . . . Explosions 1 | . . . 1 . . . . Melee 748 | . . 130 . 42 484 . 92 Knockbacks 22 | . 4 3 12 . . . 3 Impact 5 | . . 2 . . . . 3 Kinetic 17 | . 4 1 12 . . . . Secondary . | . . . . . . . . Self-Inflicted Damage 122 | . 34 16 59 . 13 . . Shots 4 | . . . 4 . . . . Rammed 10 | . 5 1 . . 3 . 1 Targets Rammed 10 | . 5 1 . . 3 . 1 Kicked . | . . . . . . . . Crushed . | . . . . . . . . Highest Temperature 309 | 30 225 242 309 102 234 198 11 Average Temperature 53 | 17 39 56 56 41 81 86 6 Received Heat Transfer 1744 | . 132 504 729 . 269 . 110 Siege Activations . | . . . . . . . . Robots Corrupted . | . . . . . . . . Combat Hostiles . | . . . . . . . . Parts Fried 4 | . . 1 1 . . . 2 Impact Corruptions 7 | . . 5 . . . . 2 Robots Melted . | . . . . . . . . Combat Hostiles . | . . . . . . . . Parts Melted . | . . . . . . . . Heat Transferred 583 | 37 50 . 111 185 . . 200 Parts Sabotaged . | . . . . . . . . Parts Stolen . | . . . . . . . . Parts Stripped . | . . . . . . . . Power Chain Reactions 1 | . 1 . . . . . . Missiles Intercepted . | . . . . . . . . Alert | -11 -10 -9 -8 -7 -7 -7 -5 ------- Run | Scr Mat Mat Mat Fac Sto Rec Fac Peak Influence 1062 | 5 270 247 436 241 697 269 1062 Initial 961 | . 3 96 48 198 42 232 961 Average 305 | 2 116 172 231 161 340 196 807 Maximum Alert Level 3 | . 1 1 2 1 2 1 3 Low Security (%) 40 | 100 81 50 50 51 28 34 . Level 1 35 | . 18 49 37 48 36 65 3 Level 2 14 | . . . 12 . 34 . 29 Level 3 9 | . . . . . . . 66 Level 4 . | . . . . . . . . Level 5 . | . . . . . . . . High Security . | . . . . . . . . Max Security . | . . . . . . . . Squads Dispatched 23 | . 4 1 5 . 7 . 6 Investigation 4 | . 1 . . . 1 . 2 Extermination 5 | . . . . . 2 . 3 Reinforcement 13 | . 3 1 5 . 3 . 1 Assault 1 | . . . . . 1 . . Garrison . | . . . . . . . . Intercept . | . . . . . . . . Searches Triggered 2 | . . . . . . . 2 Construction Impeded 4 | . . . 3 . . . 1 Haulers Reinforced 1 | . . . . . 1 . . Active Scanning Responses . | . . . . . . . . Cargo Convoy Interrupts . | . . . . . . . . Stealth | -11 -10 -9 -8 -7 -7 -7 -5 --------- Run | Scr Mat Mat Mat Fac Sto Rec Fac Distress Signals 12 | . 1 6 3 . 2 . . Communications Jammed 23 | . . . . . 23 . . Distress Signals 23 | . . . . . 23 . . Times Spotted 165 | . 20 27 30 4 41 23 20 Peak Tracking Total 8 | . 5 8 6 2 5 7 5 Tactical Retreats 5 | . . . 2 . 3 . . Traps | -11 -10 -9 -8 -7 -7 -7 -5 ------- Run | Scr Mat Mat Mat Fac Sto Rec Fac Traps Triggered 8 | . 3 . . . 4 . 1 Indirectly . | . . . . . . . . Trap Hack Attempts . | . . . . . . . . Triggered . | . . . . . . . . Disarmed . | . . . . . . . . Reprogrammed . | . . . . . . . . Reused . | . . . . . . . . Traps Extracted . | . . . . . . . . Installed . | . . . . . . . . Triggered . | . . . . . . . . Machines | -11 -10 -9 -8 -7 -7 -7 -5 ---------- Run | Scr Mat Mat Mat Fac Sto Rec Fac Machines Disabled 10 | . 1 3 3 . 3 . . Max in Single Turn 2 | . 1 1 2 . . . . Garrison Access 1 | . . . . . 1 . . Machines Sabotaged . | . . . . . . . . Garrisons Compromised . | . . . . . . . . Overloaded Fab Kills . | . . . . . . . . Hacking | -11 -10 -9 -8 -7 -7 -7 -5 --------- Run | Scr Mat Mat Mat Fac Sto Rec Fac Machines Accessed 25 | . 4 3 2 4 5 5 2 Terminals 17 | . 3 3 1 2 5 3 . Fabricators 2 | . . . . 1 . . 1 Repair Stations 1 | . . . . . . . 1 Recycling Units 4 | . 1 . 1 . . 2 . Scanalyzers 1 | . . . . 1 . . . Garrison Access . | . . . . . . . . Total Hacks 72 | . 15 5 6 14 11 14 7 Successful 43 | . 7 3 4 12 5 9 3 Failed 29 | . 8 2 2 2 6 5 4 Catastrophic 6 | . . 1 1 . 2 1 1 Database Lockouts . | . . . . . . . . Manual . | . . . . . . . . Terminals 46 | . 12 5 5 3 11 10 . Fabricators 5 | . . . . 1 . . 4 Repair Stations 3 | . . . . . . . 3 Recycling Units 8 | . 3 . 1 . . 4 . Scanalyzers 10 | . . . . 10 . . . Garrison Access . | . . . . . . . . Terminal Hacks 26 | . 6 3 4 2 5 6 . Part Schematic 4 | . . . . 1 1 2 . Prototype ID Bank 7 | . 3 2 1 . . 1 . Open Door 1 | . . . . . 1 . . Branch Access Points 3 | . . . . 1 1 1 . Emergency Access Points 3 | . . 1 1 . . 1 . Terminal Index 1 | . . . 1 . . . . Fabricator Index 1 | . . . . . 1 . . Alert Level 2 | . 1 . . . 1 . . Reinforcement Status 1 | . 1 . . . . . . Hauler Manifests 1 | . . . . . . 1 . Zone Layout 2 | . 1 . 1 . . . . Fabricator Hacks 3 | . . . . 1 . . 2 Network Status 1 | . . . . 1 . . . Load Schematic 1 | . . . . . . . 1 Build 1 | . . . . . . . 1 Repair Station Hacks 1 | . . . . . . . 1 Scan Component 1 | . . . . . . . 1 Recycling Unit Hacks 4 | . 1 . . . . 3 . Report Inventory 3 | . 1 . . . . 2 . Retrieve Components 1 | . . . . . . 1 . Scanalyzer 9 | . . . . 9 . . . Insert Component 4 | . . . . 4 . . . Analyze 5 | . . . . 5 . . . Garrison Access Hacks . | . . . . . . . . Unauthorized Hacks . | . . . . . . . . Terminals . | . . . . . . . . Fabricators . | . . . . . . . . Repair Stations . | . . . . . . . . Recycling Units . | . . . . . . . . Scanalyzers . | . . . . . . . . Garrison Access . | . . . . . . . . Data Cores Recovered . | . . . . . . . . Used . | . . . . . . . . Hacking Detections 20 | . 4 1 2 4 3 4 2 Full Trace Events 5 | . . . . . 1 2 2 Feedback Events 1 | . . . . . . . 1 Corruption 1 | . . . . . . . 1 Feedback Blocked . | . . . . . . . . Robot Schematics Acquired . | . . . . . . . . Robots Built . | . . . . . . . . Authchips . | . . . . . . . . Time . | . . . . . . . . Total Robot Build Rating . | . . . . . . . . Part Schematics Acquired 8 | . . . . 5 1 2 . Parts Built . | . . . . . . . . Authchips . | . . . . . . . . Time 73 | . . . . . . . 73 Total Part Build Rating . | . . . . . . . . Parts Repaired . | . . . . . . . . Time . | . . . . . . . . Parts Recycled . | . . . . . . . . Recycled Matter . | . . . . . . . . Retrieved Matter . | . . . . . . . . Retrieved Components 2 | . . . . . . 2 . Parts Scanalyzed 4 | . . . . 4 . . . Part Schematics Acquired 4 | . . . . 4 . . . Parts Damaged . | . . . . . . . . Bothacking | -11 -10 -9 -8 -7 -7 -7 -5 ------------ Run | Scr Mat Mat Mat Fac Sto Rec Fac Used RIF Installer . | . . . . . . . . Robots Hacked . | . . . . . . . . Non-combat . | . . . . . . . . Combat . | . . . . . . . . Robot Hacks Applied . | . . . . . . . . Relay Couplers Released 2 | . . . . . 2 . . Machine Destruction 2 | . . . . . 2 . . Fabnet Peak Effective % . | . . . . . . . . Robots Rewired . | . . . . . . . . Allies Hacked . | . . . . . . . . Hacks Repelled . | . . . . . . . . Allies | -11 -10 -9 -8 -7 -7 -7 -5 -------- Run | Scr Mat Mat Mat Fac Sto Rec Fac Total Allies 5 | . . . . . 5 . . Largest Group 3 | . . . . . 3 . . Highest-Rated Group 146 | . . . . . 146 . . Highest-Rated Ally 100 | . . . . . 100 . . Total Orders . | . . . . . . . . Ally Attacks 49 | . . . . . 49 . . Total Damage 1748 | . . . . . 1748 . . Kills 11 | . . . . . 11 . . Allies Corrupted . | . . . . . . . . Allies Melted . | . . . . . . . . Intel | -11 -10 -9 -8 -7 -7 -7 -5 ------- Run | Scr Mat Mat Mat Fac Sto Rec Fac Robot Analysis Total . | . . . . . . . . Derelict Logs Recovered . | . . . . . . . . Drone Launches 5 | . . . . . 5 . . Drone Recoveries 3 | . . . . . 3 . . Exploration | -11 -10 -9 -8 -7 -7 -7 -5 ------------- Run | Scr Mat Mat Mat Fac Sto Rec Fac Turns Passed 6270 | 67 627 927 1078 634 1428 609 900 Spaces Moved 3258 | 44 445 467 457 430 696 387 332 Core 14 | 13 . . . . . . 1 Treads 8 | . . . . . 3 . 5 Legs 182 | . . 175 2 . 5 . . Wheels 3054 | 31 445 292 455 430 688 387 326 Hover . | . . . . . . . . Flight . | . . . . . . . . Fastest Speed 50 | 50 90 115 110 103 125 155 155 Average Speed 140 | 109 104 146 126 120 154 155 178 Slowest Speed 1550 | 200 135 260 400 131 610 155 1550 Overloaded Moves . | . . . . . . . . Propulsion Burnouts . | . . . . . . . . Robots Hopped . | . . . . . . . . Cave-ins Triggered . | . . . . . . . . Exploration Rate (%) 41 | 4 77 33 29 8 77 95 7 Regions Visited 7 Branch Regions 2 Pre-discovered Areas . | . . . . . . . . Known Exits Taken 2 | . . . . 1 1 . . Unknown Exits Taken 5 | 1 1 1 1 . . 1 . Scrap Searched . | . . . . . . . . Spaces Dug . | . . . . . . . . Terrain Destroyed 101 | . 6 . 92 . . . 3 Melee . | . . . . . . . . Projectile 19 | . . . 16 . . . 3 AOE 82 | . 6 . 76 . . . . Terrain Rammed . | . . . . . . . . Walls Destroyed . | . . . . . . . . Machines Disabled . | . . . . . . . . Actions | -11 -10 -9 -8 -7 -7 -7 -5 --------- Run | Scr Mat Mat Mat Fac Sto Rec Fac Total 4358 | 58 538 590 756 534 936 392 554 Wait 264 | . 18 . 55 12 73 . 106 Move 3251 | 43 444 466 456 429 695 386 332 Hop . | . . . . . . . . Pick Up 149 | 7 22 15 47 24 22 1 11 Fast Attach 20 | 5 . 2 . 3 6 1 3 Attach 84 | 2 1 15 21 8 10 . 27 Detach 4 | . . . 1 . 2 . 1 Swap 76 | . 6 8 28 18 10 . 6 Drop 101 | . 7 4 27 30 24 1 8 Fire 277 | 1 35 77 121 5 21 . 17 Melee 114 | . . 2 . 5 62 3 42 Ram 10 | . 5 1 . . 3 . 1 Kick . | . . . . . . . . Crush . | . . . . . . . . Escape Stasis 8 | . . . . . 8 . . Rewire . | . . . . . . . . Trap . | . . . . . . . . Miscellaneous . | . . . . . . . . Route ------- -11/Scrapyard -10/Materials (discovered 4 exits: *Mat x2 / [*Min x2]) -9/Materials (discovered 2 exits: *Mat x2) -8/Materials -7/Factory (discovered 4 exits: *Sto x2 / Low x2) -7/Storage (discovered 2 exits: [*Fac] / *Rec) -7/Recycling -5/Factory History --------- Turn | Location | Event 20 | -11/Scrapyard | Discovered new exit (range 16) 68 | -11/Scrapyard | Entered Materials 236 | -10/Materials | Discovered new exit (range 16) 315 | -10/Materials | Build established: Mutant 393 | -10/Materials | Discovered new exit (range 16) 534 | -10/Materials | Discovered new exit (range 12) 620 | -10/Materials | Discovered new exit (range 15) 695 | -10/Materials | Entered another Materials area 695 | -9/Materials | Evolved 2 slots: Propulsion x2 866 | -9/Materials | Discovered new exit (range 11) 927 | -9/Materials | System corruption reached 10% 1004 | -9/Materials | Lost 6 parts (2p2n1u1w) 1082 | -9/Materials | Core integrity fell below 50% 1227 | -9/Materials | Discovered new exit (range 15) 1248 | -9/Materials | Core integrity fell below 20% 1622 | -9/Materials | Entered another Materials area 1622 | -8/Materials | Evolved 2 slots: Utility x2 2023 | -8/Materials | Build established: Scavenger-Mutant 2317 | -8/Materials | Discovered new exit (range 13) 2381 | -8/Materials | Lost 9 parts (1p3n2u3w) 2605 | -8/Materials | Lost 3 parts (1n2w) 2700 | -8/Materials | Entered Factory 2700 | -7/Factory | Evolved 2 slots: Propulsion x1, Weapon x1 2793 | -7/Factory | Identified exit to Storage 2793 | -7/Factory | Identified exit to Lower Caves 2997 | -7/Factory | Build established: Scavenger-Gunner 3334 | -7/Factory | Entered Storage 3361 | -7/Storage | Build established: Scavenger-Mutant 3774 | -7/Storage | Lost 8 parts (1p5n2u) 3907 | -7/Storage | Met 01-MTF 4083 | -7/Storage | Discovered new exit (range 5) 4207 | -7/Storage | Discovered new exit (range 16) 4226 | -7/Storage | Build established: Mutant 4442 | -7/Storage | Identified exit to Recycling 4762 | -7/Storage | Entered Recycling 4850 | -7/Recycling | Spotter reported a threat 4877 | -7/Recycling | Spotter reported a threat 4905 | -7/Recycling | Spotter reported a threat 4910 | -7/Recycling | Spotter reported a threat 4995 | -7/Recycling | Spotter reported a threat 5002 | -7/Recycling | Spotter reported a threat 5007 | -7/Recycling | Spotter reported a threat 5012 | -7/Recycling | Spotter reported a threat 5016 | -7/Recycling | Spotter reported a threat 5019 | -7/Recycling | Spotter reported a threat 5028 | -7/Recycling | Spotter reported a threat 5048 | -7/Recycling | Spotter reported a threat 5060 | -7/Recycling | Spotter reported a threat 5065 | -7/Recycling | Spotter reported a threat 5072 | -7/Recycling | Spotter reported a threat 5113 | -7/Recycling | Spotter reported a threat 5129 | -7/Recycling | Spotter reported a threat 5129 | -7/Recycling | Spotter reported a threat 5163 | -7/Recycling | Spotter reported a threat 5197 | -7/Recycling | Spotter reported a threat 5224 | -7/Recycling | Spotter reported a threat 5231 | -7/Recycling | Spotter reported a threat 5250 | -7/Recycling | Spotter reported a threat 5272 | -7/Recycling | Spotter reported a threat 5278 | -7/Recycling | Spotter reported a threat 5291 | -7/Recycling | Spotter reported a threat 5291 | -7/Recycling | Spotter reported a threat 5309 | -7/Recycling | Discovered new exit (range 16) 5325 | -7/Recycling | Spotter reported a threat 5330 | -7/Recycling | Spotter reported a threat 5371 | -7/Recycling | Entered Factory 5371 | -5/Factory | Evolved 4 slots: Power x1, Utility x3 5671 | -5/Factory | Search patrols dispatched 5674 | -5/Factory | Build established: Scavenger-Mutant 5899 | -5/Factory | Lost 4 parts (3n1w) 5971 | -5/Factory | Search patrols dispatched 6241 | -5/Factory | System corruption reached 10% 6255 | -5/Factory | Core integrity fell below 50% 6268 | -5/Factory | Core integrity fell below 20% 6271 | -5/Factory | Destroyed by P-70 Sage with Tesla Rifle Last Messages --------------- 06247_ U-05 Engineer lays Concrete. 06249_ P-70 Sage resets P-70 Sage, system corruption cleaned. 06250_ U-05 Engineer lays Concrete. 06252_ Penetrated by Slug. 06252_ Wheel destroyed. 06252_ Penetrated by Slug. 06253_ U-05 Engineer lays Concrete. 06255_ Katana destroyed. 06255_ Flak Gun destroyed. 06256_ System corrupted: Imp. Trap Extractor rejected. 06258_ Penetrated by Slug. 06259_ K-01 Serf collects debris. 06260_ Identified Shock Maul. 06263_ K-01 Serf collects debris. 06264_ Penetrated by Slug. 06266_ K-01 Serf collects debris. 06267_ U-05 Engineer repairs door. 06270_ K-01 Serf collects debris. 06270_ Penetrated by Slug. [Achievement: Just Browsing] Map ----- +----------------------------------------------------+ | ?????????????????????????????????????????????????? | | ?????????????????????????????????????????????????? | | ?????????????????????????????????????????????????? | | ?????????????????????????????????????????????????? | | ?????????????????????????????????????????????????? | | ???? ??????????????????????????????????????????? | | ??" ??????????????????????????????????????????? | | ??" ??????????????????????????????????????????? | | ?"" #?????????????????? ????????????????????? | | ?? #?????????????????? ??????????????????? | | """ #??? ?????????????? ?????????????????? | | """ #### ############## #?????????????????? | | """ #?????????????????? | | ] #?????????????????? | | ? % #?????????????????? | | ??? #?????????????????? | | ????? ^^^ ^#?????????????????? | | ?# ######### #?????????????????? | | ?# %# == # #######+##????????? | | ## [+%" #u %k ??????? | | # [#%" + ??????? | | #^ ^^ # " = ! # % = ?????? | | # # " =!!!# % !!!![%%p k ??????? | | + # " ! " u ! ![%! %%p ????????? | | ####### " !! #""""### ! !%%=p! p#?????????????? | | #?????# " # #h!@ !%%%| #?????????????? | | #?????# " ### ## # |=!%" #?????????????? | | #?????# " #?##?### !% =% #?????????????? | | #?????# #??????# " "" #?????????????? | | #?????#########??????# #?????????????? | | #????????????????????# #?????????????? | | #????????????????????#########+#####????????????? | | #?????????????????????????# #????????????? | | #?????????????????????????# #????????????? | | #?????????????????????????# #????????????? | | #?????????????????????????# #????????????? | | #?????????????????????????# #????????????? | | ##?????????????????????????# #????????????? | | ???????????????????????????# #????????????? | | ???????????????????????????# #????????????? | | ???????????????????????????# #????????????? | | ???????????????????????????##########????????????? | | ?????????????????????????????????????????????????? | | ?????????????????????????????????????????????????? | | ?????????????????????????????????????????????????? | | ?????????????????????????????????????????????????? | | ?????????????????????????????????????????????????? | | | | | | | +----------------------------------------------------+ Best States ------------- Heat Dissipation 67 Energy Generation 27 Energy Capacity 430 Matter Stores 459 Matter Capacity 500 Sight Range 16 Robot Scan Range 15 Terrain Scan Density 10 Jamming Range 12 Armor Coverage 1200 Weapon Shielding 66 Evasion (%) 42 Targeting Accuracy 18 Recoil Reduction 2 Item Schematics ----------------- Xenon Bombardment Thruster | -7/Factory | Hacked Scythe | -7/Factory | Scanalyzed Katana | -7/Factory | Scanalyzed Hrd. Medium Armor Plating | -7/Factory | Scanalyzed Hcp. Matter Pod | -7/Factory | Scanalyzed Imp. Carbon-fiber Leg | -7/Storage | Hacked System Restoration Module | -7/Recycling | Hacked Hvy. Phase Cannon | -7/Recycling | Hacked Robot Schematics ------------------ None Fabricated ------------ Nothing Alien Tech Used ----------------- None Achievements -------------- Just Browsing Challenges ------------ None Game ------ Seed HypervelocityPointRipper Manual? 0 Play Time 01:44:30 Cumulative 22.0 hours Start 2022.06.06 @ 13:25:34 End 2022.06.06 @ 15:26:30 Sessions 1 Manual Loads 0 Difficulty Rogue Special Mode None Game No. 17 Rogue 11 Adventurer 6 Explorer 0 Win Type - Total 0 Types 0/0/0/0/0/0/0/0/0 Lore% 7 Gallery% 25 Achievement% 17 Wizard Run 0 Options --------- ASCII 0 Keyboard 0 Movement Mouse Keybinds 0 Fullscreen 1 Font 18/X11 Map View 76x50 Tactical HUD 1 Map Filters NONE Filters NONE Steam 1 RUN: 96e403d1-732a-4c89-aac5-8c67b0981f58